bitfinex/quotes_SOLUSD_20240813
["timestamp","ask_amount","ask_price","bid_price","bid_amount"]
[1723527189392,26.8568,145.84,145.78,0.25098]
[1723527189729,6.8573,145.83,145.76,0.12549]
[1723527189924,6.8577,145.82,145.74,6.6108]
[1723527190092,20.0,145.84,145.75,21.37180689]
[1723527190287,6.8564,145.85,145.75,21.37180689]
[1723527190909,6.8569,145.84,145.75,20.0]
[1723527191118,6.8569,145.84,145.76,45.50196]
[1723527191537,6.8563,145.85,145.78,0.12549]
[1723527191699,6.8563,145.85,145.78,0.50196]
[1723527192912,34.30409599,145.86,145.78,0.50196]
[1723527193104,31.62,145.86,145.78,15.73196]
[1723527193301,6.8564,145.85,145.8,6.2539]
[1723527193502,6.8559,145.86,145.8,6.2539]
[1723527194309,6.8564,145.85,145.8,6.2539]
[1723527194819,49.44123265,145.88,145.8,6.2539]
[1723527194820,6.8558,145.86,145.8,6.2539]
[1723527195023,6.8564,145.85,145.8,6.2539]
[1723527195323,6.8568,145.84,145.8,6.2539]
[1723527196422,6.8563,145.85,145.8,6.2539]
[1723527197311,6.8568,145.84,145.8,6.2539]
[1723527198723,6.8564,145.85,145.8,6.2539]
[1723527200918,31.62,145.86,145.78,15.23]
[1723527201103,17.1392,145.87,145.78,15.23]
[1723527201104,6.8578,145.82,145.78,15.23]
[1723527201308,6.8578,145.82,145.77,6.5014]
[1723527201309,6.8582,145.81,145.77,6.5014]
[1723527201698,6.8578,145.82,145.77,6.5014]
[1723527202027,31.62,145.84,145.77,6.5014]
[1723527202028,12.67,145.83,145.77,6.5014]
[1723527202240,19.5276,145.83,145.77,6.5014]
[1723527203419,12.67,145.83,145.77,6.5014]
[1723527203731,12.67,145.81,145.77,6.5014]
[1723527204140,19.5285,145.81,145.77,6.5014]
[1723527204916,17.26469,145.87,145.78,0.25098]
[1723527204917,12.67,145.83,145.78,0.25098]
[1723527205211,6.8568,145.84,145.78,0.25098]
[1723527206661,17.1392,145.87,145.77,6.62689]
[1723527206662,19.5274,145.83,145.77,6.62689]
[1723527206815,6.8579,145.82,145.77,6.62689]
[1723527207152,6.8582,145.81,145.77,6.5014]
[1723527207341,19.5282,145.81,145.77,6.5014]
[1723527208037,6.8582,145.81,145.77,6.5014]
[1723527208242,5.3582,145.81,145.77,6.5014]
[1723527208447,6.8587,145.8,145.77,6.5014]
[1723527208741,6.8583,145.81,145.77,6.5014]
[1723527209239,17.1415,145.85,145.77,6.5014]
[1723527209445,17.82123265,145.88,145.77,6.5014]
[1723527209647,31.68,145.87,145.78,0.12549]
[1723527209818,17.82123265,145.88,145.78,0.37647]
[1723527210017,17.82123265,145.88,145.78,45.37647]
[1723527210018,6.8557,145.87,145.78,45.37647]
[1723527210356,6.8557,145.87,145.78,46.7481488]
[1723527210640,6.8559,145.86,145.78,46.7481488]
[1723527210818,6.8559,145.86,145.79,0.25098]
[1723527211137,49.50123265,145.88,145.78,0.25098]
[1723527211441,6.8559,145.86,145.79,0.25098]
[1723527212343,6.8564,145.85,145.79,0.25098]
[1723527213326,6.8564,145.85,145.78,45.25098]
[1723527213629,6.8574,145.83,145.78,0.12549]
[1723527214230,6.8569,145.84,145.78,0.12549]
[1723527214826,6.8565,145.85,145.78,0.12549]
[1723527215643,6.8565,145.85,145.78,45.37647]
[1723527216551,6.8565,145.85,145.79,1.37174516]
[1723527216846,41.29953265,145.88,145.81,15.4244]
[1723527217054,20.0,145.87,145.81,15.4244]
[1723527217244,26.8554,145.87,145.81,15.4244]
[1723527218442,34.18820329,145.92,145.82,8.01762309]
[1723527218443,31.68,145.9,145.82,8.01762309]
[1723527218746,6.8539,145.91,145.84,0.12549]
[1723527218956,6.854,145.9,145.84,0.25098]
[1723527219754,6.8536,145.91,145.84,0.25098]
[1723527220343,31.68,145.91,145.84,0.12549]
[1723527220532,6.8549,145.88,145.82,6.3951]
[1723527220853,6.8554,145.87,145.82,6.3951]
[1723527221752,6.8559,145.86,145.82,6.3951]
[1723527222951,6.8554,145.87,145.82,6.3951]
[1723527223626,31.68,145.89,145.82,6.3951]
[1723527223940,31.68,145.91,145.83,1.49682155]
[1723527224163,38.5336,145.91,145.83,46.49682155]
[1723527224632,6.8542,145.9,145.83,46.49682155]
[1723527224830,6.8542,145.9,145.83,1.49682155]
[1723527225031,6.8542,145.9,145.83,45.12549]
[1723527225244,6.8542,145.9,145.83,46.49676706]
[1723527226852,6.8546,145.89,145.83,0.25098]
[1723527227354,6.8549,145.88,145.83,0.12549]
[1723527227539,6.8549,145.88,145.82,6.3951]
[1723527227964,6.8545,145.89,145.82,7.76650113]
[1723527228151,6.8545,145.89,145.83,0.12549]
[1723527229333,6.8545,145.89,145.82,6.3951]
[1723527230541,6.8541,145.9,145.83,1.37136588]
[1723527230744,31.68,145.93,145.84,0.37647]
[1723527230947,20.0,145.92,145.87,6.1643]
[1723527231302,20.0,145.92,145.87,7.53519106]
[1723527231433,26.8524,145.94,145.87,7.53519106]
[1723527231837,6.8526,145.93,145.87,7.53519106]
[1723527232059,20.0,145.92,145.87,7.53519106]
[1723527233365,26.8531,145.92,145.87,6.1643]
[1723527234040,6.8535,145.91,145.87,6.1643]
[1723527234461,6.854,145.9,145.87,6.1643]
[1723527234665,31.68,145.91,145.87,6.1643]
[1723527234871,6.854,145.9,145.87,6.1643]
[1723527235243,6.8546,145.89,145.87,6.1643]
[1723527236343,6.8541,145.9,145.87,6.1643]
[1723527236840,31.68,145.91,145.87,6.1643]
[1723527236841,38.5335,145.91,145.87,6.1643]
[1723527237662,26.8531,145.92,145.87,6.1643]
[1723527238045,6.8535,145.91,145.87,6.1643]
[1723527238356,26.8531,145.92,145.87,6.1643]
[1723527239379,20.0,145.92,145.87,6.1643]
[1723527240652,26.8534,145.92,145.87,6.1643]
[1723527240981,6.8537,145.91,145.87,6.1643]
[1723527241666,6.8524,145.94,145.87,7.53530097]
[1723527241969,6.8529,145.93,145.88,0.12549]
[1723527242472,6.8521,145.95,145.88,1.62180612]
[1723527242776,6.8521,145.95,145.89,0.25098]
[1723527243157,6.8521,145.95,145.9,0.12549]
[1723527244189,31.68,145.97,145.9,0.25098]
[1723527244351,15.7111,146.0,145.91,16.23428]
[1723527244352,6.8502,145.98,145.91,16.23428]
[1723527244682,31.68,145.99,145.91,16.23428]
[1723527244683,6.8508,145.97,145.92,0.12549]
[1723527244989,6.8508,145.97,145.92,6.60369]
[1723527245463,31.68,145.99,145.92,6.60369]
[1723527245658,20.0,145.98,145.92,7.97417691]
[1723527246356,26.8502,145.98,145.92,7.97417691]
[1723527246558,6.8502,145.98,145.92,7.97417691]
[1723527247389,6.8507,145.97,145.92,7.97417691]
[1723527248583,38.5302,145.99,145.92,7.97417691]
[1723527248772,20.0,146.0,145.93,46.74687387]
[1723527248962,20.0,146.0,145.93,0.12549]
[1723527249154,6.8506,145.98,145.92,6.60369]
[1723527249376,6.8507,145.97,145.92,6.60369]
[1723527251790,6.8507,145.97,145.92,6.4782]
[1723527253469,6.8512,145.96,145.92,6.4782]
[1723527253886,6.8508,145.97,145.92,6.4782]
[1723527254383,6.8502,145.98,145.92,6.4782]
[1723527254592,31.68,145.99,145.92,7.84862266]
[1723527254593,38.5301,145.99,145.92,7.84862266]
[1723527254763,20.0,145.98,145.92,7.84862266]
[1723527255368,20.0,145.98,145.93,1.49588019]
[1723527255606,6.8493,146.0,145.93,46.49588019]
[1723527255979,19.4893,146.0,145.93,46.49588019]
[1723527256592,6.8498,145.99,145.93,45.12549]
[1723527256767,19.4898,145.99,145.93,45.12549]
[1723527256972,6.8503,145.98,145.93,0.12549]
[1723527257176,6.8503,145.98,145.92,6.4782]
[1723527257480,19.4898,145.99,145.93,0.12549]
[1723527257683,19.4898,145.99,145.93,1.49588374]
[1723527257887,6.8498,145.99,145.93,0.12549]
[1723527258233,6.8507,145.97,145.93,0.12549]
[1723527258499,6.8507,145.97,145.92,6.4782]
[1723527258696,6.8503,145.98,145.92,6.4782]
[1723527258992,6.8509,145.97,145.92,6.4782]
[1723527260294,6.8502,145.99,145.92,7.84876769]
[1723527260495,6.8502,145.99,145.93,1.37056769]
[1723527260668,38.4493,146.0,145.93,1.37056769]
[1723527260868,26.8499,145.99,145.92,6.72918]
[1723527261272,26.8499,145.99,145.93,1.74687569]
[1723527262266,34.33151776,146.02,145.93,46.74687569]
[1723527262476,31.6,146.02,145.94,0.25098]
[1723527262775,20.0,146.01,145.95,0.25098]
[1723527262973,26.8488,146.01,145.95,0.25098]
[1723527263583,6.8493,146.0,145.95,0.25098]
[1723527264875,26.8489,146.01,145.95,0.25098]
[1723527265077,6.8494,146.0,145.95,0.25098]
[1723527265705,26.8489,146.01,145.95,0.25098]
[1723527265917,6.8493,146.0,145.95,0.25098]
[1723527266223,6.8498,145.99,145.95,0.25098]
[1723527266399,6.8498,145.99,145.95,0.12549]
[1723527266574,6.8504,145.98,145.94,0.25098]
[1723527267407,6.8504,145.98,145.93,1.49583142]
[1723527267898,6.8498,145.99,145.93,1.49583142]
[1723527268071,6.8498,145.99,145.94,0.37647]
[1723527268270,6.8494,146.0,145.94,0.37647]
[1723527268697,6.8498,145.99,145.94,0.37647]
[1723527268901,6.8502,145.98,145.93,0.12549]
[1723527269102,6.8502,145.99,145.93,1.49584422]
[1723527269404,6.8494,146.0,145.94,0.12549]
[1723527269798,20.0,146.01,145.94,0.12549]
[1723527269974,20.0,146.01,145.93,0.25098]
[1723527269975,6.8506,145.98,145.93,0.25098]
[1723527271087,31.6,146.0,145.93,0.25098]
[1723527271088,6.8498,145.99,145.93,1.62133387]
[1723527271782,6.8498,145.99,145.93,0.25098]
[1723527272411,6.8498,145.99,145.93,1.62132417]
[1723527272707,6.8493,146.0,145.94,0.12549]
[1723527273004,6.8499,145.99,145.94,0.25098]
[1723527273206,6.8499,145.99,145.95,0.12549]
[1723527274281,6.8494,146.0,145.95,0.12549]
[1723527274482,26.8489,146.01,145.95,0.12549]
[1723527274795,31.6,146.02,145.96,0.12549]
[1723527274978,31.6,146.02,145.96,1.74647293]
[1723527274979,6.8484,146.02,145.96,1.74647293]
[1723527277390,6.8488,146.01,145.96,1.74647293]
[1723527277799,6.8488,146.01,145.96,0.37647]
[1723527277998,19.4788,146.01,145.96,0.37647]
[1723527279824,6.8488,146.01,145.96,0.37647]
[1723527279984,6.8484,146.02,145.96,0.37647]
[1723527280520,6.8484,146.02,145.97,15.50509]
[1723527280699,2.744862,146.06,145.98,8.1813023]
[1723527280891,6.8478,146.04,145.99,1.49528844]
[1723527281309,6.848,146.03,145.99,0.12549]
[1723527281710,6.848,146.03,145.98,8.18125445]
[1723527282424,6.8475,146.04,145.98,8.18125445]
[1723527282721,12.63,146.05,145.99,1.6208522]
[1723527282916,6.8484,146.02,145.99,0.25098]
[1723527283310,6.848,146.03,145.99,0.25098]
[1723527283705,6.848,146.03,145.99,0.12549]
[1723527283907,6.8483,146.02,145.98,6.81138]
[1723527285025,19.4779,146.03,145.98,6.81138]
[1723527285721,19.4779,146.03,145.99,0.12549]
[1723527285914,19.4779,146.03,145.99,0.25098]
[1723527288602,12.63,146.01,145.98,6.5604]
[1723527288816,6.8493,146.0,145.98,6.5604]
[1723527289203,6.8493,146.0,145.97,15.3796]
[1723527291417,12.63,145.99,145.95,6.1362]
[1723527291834,6.8503,145.98,145.95,6.1362]
[1723527292430,6.8509,145.97,145.95,6.1362]
[1723527292617,6.8512,145.96,145.91,6.4138]
[1723527292814,12.63,145.95,145.91,6.4138]
[1723527293322,19.4817,145.95,145.91,6.4138]
[1723527294505,12.63,145.95,145.91,6.4138]
[1723527294705,19.4811,145.97,145.91,6.4138]
[1723527295120,12.63,145.97,145.91,6.4138]
[1723527295355,19.4816,145.95,145.91,6.4138]
[1723527295510,6.8536,145.91,145.85,16.38174999]
[1723527295821,19.4845,145.89,145.85,6.2355]
[1723527296137,6.855,145.88,145.85,6.2355]
[1723527296612,12.63,145.87,145.81,6.4132]
[1723527298040,38.5054,145.88,145.81,6.4132]
[1723527299039,6.8554,145.87,145.81,6.4132]
[1723527299413,38.505,145.88,145.81,6.4132]
[1723527299607,47.74452254,145.92,145.82,1.37136565]
[1723527299608,38.5042,145.9,145.82,1.37136565]
[1723527299869,6.8546,145.89,145.83,1.37121744]
[1723527300212,6.8546,145.89,145.82,46.4967396]
[1723527300412,6.854,145.9,145.83,0.12549]
[1723527300636,6.854,145.9,145.83,1.74771918]
[1723527300831,6.8545,145.89,145.83,0.37647]
[1723527301340,6.855,145.88,145.81,6.4132]
[1723527301537,6.855,145.88,145.82,0.12549]
[1723527301910,6.8545,145.89,145.82,0.25098]
[1723527302110,6.8545,145.89,145.82,46.62228893]
[1723527302438,6.8549,145.88,145.83,0.12549]
[1723527302739,31.65,145.88,145.81,6.4132]
[1723527302938,6.8554,145.87,145.81,6.4132]
[1723527303233,38.5049,145.88,145.81,6.4132]
[1723527303418,8.51166005,145.87,145.81,6.4132]
[1723527303607,6.8554,145.87,145.81,6.4132]
[1723527303811,6.8559,145.86,145.81,6.4132]
[1723527304250,6.8554,145.87,145.81,6.4132]
[1723527304766,6.8559,145.86,145.81,6.4132]
[1723527304944,6.8554,145.87,145.81,6.4132]
[1723527305437,38.505,145.88,145.81,6.4132]
[1723527305739,6.8559,145.86,145.81,6.4132]
[1723527307023,6.8555,145.87,145.81,6.4132]
[1723527307415,31.65,145.88,145.81,6.4132]
[1723527307619,20.0,145.87,145.81,6.4132]
[1723527307820,6.8559,145.86,145.81,6.4132]
[1723527309133,6.8554,145.87,145.81,6.4132]
[1723527310320,6.8554,145.87,145.81,7.78469779]
[1723527311347,34.39452254,145.92,145.83,0.12549]
[1723527311532,6.8536,145.91,145.83,1.4966614]
[1723527311721,6.8536,145.91,145.84,0.12549]
[1723527311922,6.8541,145.9,145.84,0.12549]
[1723527312137,6.8545,145.89,145.84,0.12549]
[1723527312444,6.8555,145.87,145.83,0.12549]
[1723527312940,6.8549,145.88,145.83,0.12549]
[1723527313437,1.65626005,145.87,145.83,0.12549]
[1723527313637,6.8549,145.88,145.83,0.12549]
[1723527313847,31.65,145.88,145.81,6.4132]
[1723527314039,6.8559,145.86,145.81,6.4132]
[1723527314944,6.8563,145.85,145.81,6.4132]
[1723527315149,6.8568,145.84,145.81,6.4132]
[1723527315443,31.65,145.86,145.77,6.3233]
[1723527315641,6.8574,145.83,145.77,6.3233]
[1723527315845,38.5068,145.84,145.77,6.3233]
[1723527316926,38.5068,145.84,145.78,0.12549]
[1723527317245,6.8573,145.83,145.78,0.12549]
[1723527317535,1.65626005,145.82,145.77,6.3233]
[1723527317841,28.51396005,145.83,145.77,6.3233]
[1723527318021,26.8577,145.83,145.77,6.3233]
[1723527318438,6.8578,145.82,145.77,6.3233]
[1723527319023,6.8583,145.81,145.77,6.3233]
[1723527321163,31.65,145.82,145.77,6.3233]
[1723527321447,6.8586,145.81,145.76,16.057]
[1723527322760,6.8587,145.8,145.76,16.057]
[1723527323061,6.8583,145.81,145.76,16.057]
[1723527324424,20.0,145.83,145.76,16.057]
[1723527324724,6.8567,145.85,145.77,46.8737935]
[1723527325042,6.8567,145.85,145.77,45.50196]
[1723527325850,6.8577,145.82,145.77,0.50196]
[1723527326058,6.8582,145.81,145.77,0.12549]
[1723527326254,6.8578,145.82,145.76,16.057]
[1723527326460,6.8573,145.83,145.76,16.057]
[1723527327136,6.8578,145.82,145.76,16.057]
[1723527327341,6.8578,145.82,145.75,0.37647]
[1723527327547,6.8578,145.82,145.76,0.12549]
[1723527327745,6.8578,145.82,145.76,0.37647]
[1723527328557,6.8568,145.84,145.77,0.12549]
[1723527328740,54.34514723,145.87,145.78,15.9784]
[1723527328945,51.65,145.87,145.79,1.37168512]
[1723527329145,51.65,145.87,145.79,0.12549]
[1723527329468,6.8562,145.86,145.79,0.50196]
[1723527329763,20.0,145.85,145.79,0.50196]
[1723527329967,26.8563,145.85,145.79,0.50196]
[1723527330165,6.8563,145.85,145.79,0.50196]
[1723527331738,6.8563,145.85,145.8,6.4835]
[1723527332645,51.65,145.87,145.8,6.4835]
[1723527332857,6.8581,145.82,145.8,6.4835]
[1723527333052,6.8583,145.81,145.78,15.9784]
[1723527333653,6.8587,145.8,145.78,15.9784]
[1723527333959,6.8587,145.8,145.77,6.1358]
[1723527334160,45.0,145.86,145.74,15.161]
[1723527334161,31.65,145.81,145.74,15.161]
[1723527334572,20.0,145.8,145.74,15.161]
[1723527335841,26.8587,145.8,145.74,16.53306121]
[1723527336161,26.8587,145.8,145.74,15.161]
[1723527336765,26.8587,145.8,145.75,0.12549]
[1723527336948,6.8587,145.8,145.75,0.12549]
[1723527337154,6.8587,145.8,145.75,0.37647]
[1723527339165,6.8592,145.79,145.75,0.12549]
[1723527339357,6.8592,145.79,145.74,15.161]
[1723527341932,6.8597,145.78,145.74,15.161]
[1723527342160,6.8602,145.77,145.74,15.161]
[1723527342375,6.8596,145.78,145.74,15.161]
[1723527343755,6.8602,145.77,145.74,15.161]
[1723527343951,6.8602,145.77,145.72,6.1799]
[1723527344253,31.65,145.79,145.72,6.1799]
[1723527344254,6.8606,145.76,145.72,6.1799]
[1723527344940,31.65,145.75,145.69,7.1089583]
[1723527345140,6.8611,145.75,145.69,7.1089583]
[1723527345462,6.8607,145.76,145.69,7.1089583]
[1723527345666,6.8602,145.77,145.69,7.1089583]
[1723527345841,31.65,145.81,145.75,6.8609]
[1723527346042,6.8594,145.79,145.74,6.8615]
[1723527346251,6.8596,145.78,145.73,6.8619]
[1723527347150,31.65,145.81,145.7,1.49784639]
[1723527347456,6.8583,145.81,145.74,0.12549]
[1723527347655,6.8583,145.81,145.74,0.50196]
[1723527347978,6.8588,145.8,145.74,0.12549]
[1723527348268,6.8592,145.79,145.73,15.1247]
[1723527348465,6.8602,145.77,145.73,15.1247]
[1723527349260,6.8596,145.78,145.73,15.1247]
[1723527349584,6.8592,145.79,145.73,15.1247]
[1723527349750,31.65,145.81,145.74,0.12549]
[1723527349947,31.65,145.81,145.76,6.8605]
[1723527349948,20.0,145.8,145.76,6.8605]
[1723527350961,26.8587,145.8,145.76,6.8605]
[1723527351165,21.65626005,145.8,145.73,15.1247]
[1723527351373,6.8601,145.77,145.73,15.1247]
[1723527352284,20.0,145.8,145.73,15.1247]
[1723527352285,6.8597,145.78,145.73,15.1247]
[1723527353488,6.8592,145.79,145.73,15.1247]
[1723527359193,1.65626005,145.78,145.73,15.1247]
[1723527359362,6.8611,145.75,145.73,15.1247]
[1723527359560,6.8607,145.76,145.73,15.1247]
[1723527359763,20.0,145.8,145.73,15.1247]
[1723527359970,51.65,145.8,145.73,15.1247]
[1723527360460,6.8596,145.78,145.73,15.1247]
[1723527360683,51.65,145.8,145.73,15.1247]
[1723527360897,6.8605,145.77,145.73,15.1247]
[1723527361099,7.12649383,145.84,145.74,66.87400858]
[1723527361383,6.8581,145.82,145.74,66.87400858]
[1723527361592,6.8583,145.81,145.74,65.50196]
[1723527361891,12.67,145.8,145.76,6.8604]
[1723527362091,12.67,145.82,145.78,6.8595]
[1723527362299,12.67,145.82,145.77,6.49649]
[1723527362584,19.5269,145.84,145.77,6.49649]
[1723527362799,12.67,145.84,145.77,6.49649]
[1723527362966,6.8573,145.83,145.77,6.49649]
[1723527363974,38.5268,145.84,145.77,6.49649]
[1723527364288,10.97812846,145.85,145.78,1.49727163]
[1723527364289,17.83452846,145.85,145.78,1.49727163]
[1723527364486,17.83452846,145.85,145.79,16.1514]
[1723527365084,6.8564,145.85,145.79,16.1514]
[1723527367088,31.67,145.86,145.79,16.1514]
[1723527367329,6.8573,145.83,145.79,16.1514]
[1723527368485,31.67,145.84,145.79,16.1514]
[1723527368699,38.5268,145.84,145.79,16.1514]
[1723527368993,31.67,145.84,145.79,16.1514]
[1723527369298,20.0,145.85,145.79,16.1514]
[1723527369798,6.8574,145.83,145.79,16.1514]
[1723527371782,2.68154774,145.88,145.79,16.1514]
[1723527371983,6.8555,145.87,145.8,1.74820813]
[1723527372689,6.8555,145.87,145.8,0.37647]
[1723527372996,6.8555,145.87,145.8,1.74798052]
[1723527373299,6.8555,145.87,145.8,46.74798052]
[1723527376380,6.8559,145.86,145.8,46.74798052]
[1723527378489,38.5253,145.88,145.81,6.2254]
[1723527378798,38.5253,145.88,145.82,1.3713879]
[1723527379173,38.5249,145.88,145.82,1.3713879]
[1723527380005,38.5249,145.88,145.82,1.37131628]
[1723527381199,6.8554,145.87,145.82,1.37131628]
[1723527381378,6.8554,145.87,145.82,0.12549]
[1723527381702,6.8564,145.85,145.81,6.2254]
[1723527381896,6.856,145.86,145.81,6.2254]
[1723527382686,6.856,145.86,145.81,7.59686446]
[1723527383501,6.8555,145.87,145.81,7.59686446]
[1723527383683,0.12549,145.91,145.81,7.59686446]
[1723527383883,20.0,145.91,145.82,0.25098]
[1723527384204,31.67,145.9,145.85,6.8559]
[1723527384501,20.0,145.89,145.84,17.1412]
[1723527384881,6.8553,145.88,145.84,17.1412]
[1723527385688,26.8545,145.89,145.84,23.9978]
[1723527385891,12.66,145.88,145.84,23.9978]
[1723527386192,19.5149,145.88,145.84,23.9978]
[1723527386402,19.5149,145.88,145.84,17.1412]
[1723527387510,12.66,145.88,145.84,23.9978]
[1723527388012,19.5149,145.88,145.84,23.9978]
[1723527389098,12.66,145.88,145.85,6.8562]
[1723527389312,12.66,145.88,145.84,23.9979]
[1723527389618,19.5149,145.88,145.84,17.1412]
[1723527394025,12.66,145.86,145.82,0.12549]
[1723527394238,19.5159,145.86,145.82,0.12549]
[1723527394609,12.66,145.86,145.82,6.98319]
[1723527396105,12.66,145.86,145.83,6.8572]
[1723527396303,12.66,145.86,145.83,6.98269]
[1723527397446,12.54,145.86,145.83,6.98269]
[1723527398911,12.66,145.88,145.83,0.12549]
[1723527399129,12.66,145.88,145.83,1.62211992]
[1723527399443,12.66,145.88,145.86,6.8555]
[1723527399960,12.66,145.88,145.85,23.9965]
[1723527402715,12.66,145.88,145.85,17.1403]
[1723527404910,12.66,145.88,145.85,18.5113971]
[1723527406917,12.66,145.88,145.85,17.1403]
[1723527407341,12.66,145.88,145.85,18.51140251]
[1723527408051,12.66,145.88,145.85,17.1403]
[1723527411642,12.66,145.88,145.83,7.10818]
[1723527411643,6.8557,145.87,145.83,7.10818]
[1723527411941,6.8557,145.87,145.83,6.98269]
[1723527412135,6.8557,145.87,145.83,8.35393164]
[1723527412334,6.8557,145.87,145.83,6.98269]
[1723527413013,19.5149,145.88,145.83,8.35393322]
[1723527413841,19.5149,145.88,145.84,6.8568]
[1723527414720,12.66,145.86,145.83,6.98269]
[1723527415840,12.66,145.86,145.84,6.8566]
[1723527416045,12.66,145.86,145.83,6.8571]
[1723527418733,12.66,145.86,145.84,6.8567]
[1723527420745,12.66,145.88,145.85,6.8563]
[1723527423323,12.66,145.86,145.84,17.1414]
[1723527423654,12.66,145.86,145.82,0.25098]
[1723527423828,12.66,145.86,145.82,7.10828]
[1723527424152,12.66,145.86,145.83,6.8572]
[1723527425435,12.66,145.88,145.85,6.8559]
[1723527425940,12.66,145.88,145.86,6.8557]
[1723527427348,12.66,145.88,145.85,6.8563]
[1723527427531,12.66,145.88,145.84,17.26739]
[1723527428946,12.66,145.88,145.85,6.8562]
[1723527429152,6.8554,145.87,145.84,17.1419]
[1723527429318,12.66,145.86,145.84,17.1419]
[1723527430758,12.66,145.86,145.84,23.9987]
[1723527431258,12.66,145.86,145.83,6.8571]
[1723527431458,12.66,145.86,145.82,10.42272348]
[1723527431670,24.82875926,145.92,145.84,17.1419]
[1723527431841,12.66,145.88,145.84,23.9986]
[1723527432440,12.66,145.89,145.85,6.8562]
[1723527432751,20.0,146.01,145.85,6.8562]
[1723527432752,287.33662947,145.95,145.87,0.12549]
[1723527433062,287.33662947,145.95,145.89,17.1357]
[1723527433063,19.5122,145.94,145.89,17.1357]
[1723527433246,6.8522,145.94,145.89,17.1357]
[1723527433563,28.62636703,145.95,145.92,6.853]
[1723527433769,12.66,145.95,145.92,6.853]
[1723527434237,6.8521,145.94,145.89,6.8544]
[1723527434439,12.66,145.93,145.89,6.8544]
[1723527436665,12.66,145.93,145.9,6.8539]
[1723527436866,12.66,145.95,145.91,8.22410427]
[1723527437072,18.71783113,145.99,145.93,6.8525]
[1723527437238,12.66,145.97,145.93,6.8525]
[1723527437873,19.5107,145.97,145.92,6.8529]
[1723527440469,6.8507,145.97,145.92,6.8529]
[1723527440757,12.66,145.96,145.92,6.8529]
[1723527441951,12.66,145.96,145.93,6.8525]
[1723527445290,12.66,145.96,145.92,6.8529]
[1723527446680,19.5122,145.94,145.9,17.134]
[1723527446864,6.8526,145.93,145.88,6.8548]
[1723527447252,12.66,145.94,145.86,6.4198]
[1723527447253,12.66,145.94,145.89,17.1355]
[1723527447446,12.66,145.96,145.92,6.8529]
[1723527447645,12.66,145.96,145.9,1.37051738]
[1723527447856,19.5103,145.98,145.93,6.8525]
[1723527450280,19.5103,145.98,145.93,8.22288071]
[1723527450778,6.8509,145.97,145.92,7.10398]
[1723527450952,32.65465457,146.0,145.95,6.8512]
[1723527451154,27.724,146.0,145.96,1.20991042]
[1723527451562,12.66,146.0,145.96,1.20991042]
[1723527452777,19.5094,146.0,145.96,1.20991042]
[1723527452970,6.8498,145.99,145.96,1.20991042]
[1723527453164,6.8498,145.99,145.96,0.12549]
[1723527453366,6.8498,145.99,145.95,45.25098]
[1723527455956,6.8498,145.99,145.95,52.10258]
[1723527457506,6.8498,145.99,145.95,45.25098]
[1723527457702,6.8503,145.98,145.94,0.12549]
[1723527457858,19.5103,145.98,145.94,0.37647]
[1723527458194,6.8508,145.97,145.94,0.37647]
[1723527458366,6.8508,145.97,145.93,17.25609]
[1723527458684,6.8512,145.96,145.92,8.2231844]
[1723527458881,19.5112,145.96,145.92,1.3702844]
[1723527459394,19.5112,145.96,145.91,28.4695]